[Event "January 2 Late 2024"]
[Site "https://www.chess.com"]
[Date "2024.01.02"]
[Round "6"]
[White "Le, Quang Long"]
[Black "Mendez Fortes, Eduardo Jesus"]
[Result "1-0"]
[Board "60"]
[TimeControl "180+1"]
[WhiteFideId "12401749"]
[BlackFideId "3502376"]
[WhiteElo "2774"]
[BlackElo "2548"]
[WhiteTeam "CAN"]
[BlackTeam "CUB"]
[WhiteClock "0:00:05"]
[BlackClock "0:00:03"]

1. Nf3 {[%clk 0:03:00]}  d5 {[%clk 0:02:59]} 2. g3 {[%clk 0:03:00]}  Nf6 {[%clk 0:03:00]} 3. Bg2 {[%clk 0:03:00]}  e6 {[%clk 0:03:00]} 4. O-O {[%clk 0:03:00]}  Be7 {[%clk 0:03:01]} 5. c4 {[%clk 0:03:00]}  dxc4 {[%clk 0:02:58]} 6. Qa4+ {[%clk 0:02:56]}  Nbd7 {[%clk 0:02:57]} 7. Qxc4 {[%clk 0:02:55]}  a6 {[%clk 0:02:58]} 8. Qc2 {[%clk 0:02:55]}  c5 {[%clk 0:02:57]} 9. d4 {[%clk 0:02:54]}  O-O {[%clk 0:02:56]} 10. Rd1 {[%clk 0:02:53]}  Qc7 {[%clk 0:02:49]} 11. Bf4 {[%clk 0:02:46]}  Bd6 {[%clk 0:02:49]} 12. Bxd6 {[%clk 0:02:43]}  Qxd6 {[%clk 0:02:50]} 13. e4 {[%clk 0:02:32]}  cxd4 {[%clk 0:02:39]} 14. Rxd4 {[%clk 0:02:32]}  Qe7 {[%clk 0:02:38]} 15. e5 {[%clk 0:02:27]}  Nd5 {[%clk 0:02:38]} 16. h4 {[%clk 0:02:18]}  b5 {[%clk 0:02:37]} 17. Ng5 {[%clk 0:02:15]}  g6 {[%clk 0:02:38]} 18. Nc3 {[%clk 0:02:08]}  Bb7 {[%clk 0:02:28]} 19. Nxd5 {[%clk 0:02:04]}  Bxd5 {[%clk 0:02:22]} 20. Bxd5 {[%clk 0:02:03]}  exd5 {[%clk 0:02:23]} 21. Rxd5 {[%clk 0:01:58]}  Nxe5 {[%clk 0:02:09]} 22. Re1 {[%clk 0:01:44]}  f6 {[%clk 0:02:07]} 23. f4 {[%clk 0:01:25]}  Qa7+ {[%clk 0:02:03]} 24. Kg2 {[%clk 0:01:23]}  Nc4 {[%clk 0:01:17]} 25. Ne6 {[%clk 0:01:09]}  Qe3 {[%clk 0:00:37]} 26. Qe2 {[%clk 0:00:51]}  Qxe2+ {[%clk 0:00:32]} 27. Rxe2 {[%clk 0:00:52]}  Rfe8 {[%clk 0:00:33]} 28. b3 {[%clk 0:00:48]}  Na5 {[%clk 0:00:28]} 29. Rd7 {[%clk 0:00:46]}  Nc6 {[%clk 0:00:28]} 30. g4 {[%clk 0:00:42]}  Rad8 {[%clk 0:00:17]} 31. Rc7 {[%clk 0:00:38]}  Nb4 {[%clk 0:00:14]} 32. f5 {[%clk 0:00:36]}  Nd5 {[%clk 0:00:14]} 33. Ra7 {[%clk 0:00:25]}  gxf5 {[%clk 0:00:13]} 34. gxf5 {[%clk 0:00:26]}  Kh8 {[%clk 0:00:12]} 35. Kf3 {[%clk 0:00:23]}  Rc8 {[%clk 0:00:12]} 36. Re4 {[%clk 0:00:17]}  Rc3+ {[%clk 0:00:12]} 37. Ke2 {[%clk 0:00:17]}  Rc2+ {[%clk 0:00:12]} 38. Kd3 {[%clk 0:00:16]}  Rxa2 {[%clk 0:00:12]} 39. Rd4 {[%clk 0:00:16]}  Ne7 {[%clk 0:00:08]} 40. Rdd7 {[%clk 0:00:15]}  Nxf5 {[%clk 0:00:08]} 41. Rxh7+ {[%clk 0:00:15]}  Kg8 {[%clk 0:00:08]} 42. Nf4 {[%clk 0:00:13]}  Rd8+ {[%clk 0:00:07]} 43. Ke4 {[%clk 0:00:11]}  Nd6+ {[%clk 0:00:08]} 44. Kf3 {[%clk 0:00:11]}  Nf5 {[%clk 0:00:08]} 45. Nh5 {[%clk 0:00:09]}  Rd3+ {[%clk 0:00:06]} 46. Ke4 {[%clk 0:00:09]}  Re3+ {[%clk 0:00:03]} 47. Kxf5 {[%clk 0:00:09]}  Rf2+ {[%clk 0:00:03]} 48. Kg6 {[%clk 0:00:08]}  Rg2+ {[%clk 0:00:04]} 49. Kh6 {[%clk 0:00:08]}  Re8 {[%clk 0:00:03]} 50. Nxf6+ {[%clk 0:00:06]}  Kf8 {[%clk 0:00:03]} 51. Raf7# {[%clk 0:00:05]} 1-0

[Event "January 2 Late 2024"]
[Site "https://www.chess.com"]
[Date "2024.01.02"]
[Round "6"]
[White "Salazar Farias, Luis German"]
[Black "Dyachuk, Artem"]
[Result "0-1"]
[Board "66"]
[TimeControl "180+1"]
[WhiteFideId "3902170"]
[BlackFideId "34107924"]
[WhiteElo "2532"]
[BlackElo "2719"]
[WhiteTeam "VEN"]
[BlackTeam "UKR"]
[WhiteClock "0:00:00"]
[BlackClock "0:00:19"]

1. d4 {[%clk 0:02:50]}  Nf6 {[%clk 0:02:58]} 2. c4 {[%clk 0:02:50]}  e6 {[%clk 0:02:59]} 3. Nf3 {[%clk 0:02:48]}  c5 {[%clk 0:02:57]} 4. d5 {[%clk 0:02:48]}  d6 {[%clk 0:02:55]} 5. Nc3 {[%clk 0:02:48]}  exd5 {[%clk 0:02:54]} 6. cxd5 {[%clk 0:02:49]}  g6 {[%clk 0:02:53]} 7. Nd2 {[%clk 0:02:49]}  Bg7 {[%clk 0:02:53]} 8. e4 {[%clk 0:02:50]}  O-O {[%clk 0:02:53]} 9. Be2 {[%clk 0:02:51]}  Na6 {[%clk 0:02:53]} 10. O-O {[%clk 0:02:50]}  Nc7 {[%clk 0:02:53]} 11. f3 {[%clk 0:02:43]}  a6 {[%clk 0:02:49]} 12. a4 {[%clk 0:02:43]}  Rb8 {[%clk 0:02:47]} 13. a5 {[%clk 0:02:38]}  Bd7 {[%clk 0:02:46]} 14. Nc4 {[%clk 0:02:38]}  Bb5 {[%clk 0:02:46]} 15. Bg5 {[%clk 0:02:36]}  h6 {[%clk 0:02:43]} 16. Be3 {[%clk 0:02:36]}  Re8 {[%clk 0:02:41]} 17. Qd2 {[%clk 0:02:35]}  Kh7 {[%clk 0:02:40]} 18. Rfe1 {[%clk 0:02:34]}  Bxc4 {[%clk 0:02:27]} 19. Bxc4 {[%clk 0:02:34]}  Nd7 {[%clk 0:02:27]} 20. Bf1 {[%clk 0:02:31]}  b5 {[%clk 0:02:22]} 21. axb6 {[%clk 0:02:29]}  Nxb6 {[%clk 0:02:19]} 22. Kh1 {[%clk 0:02:20]}  Qf6 {[%clk 0:02:05]} 23. Bf4 {[%clk 0:02:10]}  Nd7 {[%clk 0:01:59]} 24. Bxa6 {[%clk 0:01:59]}  Rxb2 {[%clk 0:01:56]} 25. Qxb2 {[%clk 0:01:57]}  Qxf4 {[%clk 0:01:56]} 26. Qc1 {[%clk 0:01:35]}  Qh4 {[%clk 0:01:40]} 27. f4 {[%clk 0:01:22]}  Nf6 {[%clk 0:01:34]} 28. g3 {[%clk 0:01:16]}  Qh5 {[%clk 0:01:26]} 29. Be2 {[%clk 0:01:10]}  Ng4 {[%clk 0:01:25]} 30. Bxg4 {[%clk 0:00:50]}  Qxg4 {[%clk 0:01:24]} 31. Qe3 {[%clk 0:00:45]}  Rb8 {[%clk 0:01:16]} 32. Rab1 {[%clk 0:00:41]}  Ra8 {[%clk 0:00:58]} 33. Qe2 {[%clk 0:00:35]}  Qd7 {[%clk 0:00:49]} 34. Nb5 {[%clk 0:00:32]}  Na6 {[%clk 0:00:45]} 35. Qc4 {[%clk 0:00:20]}  Nb4 {[%clk 0:00:44]} 36. Nc3 {[%clk 0:00:20]}  Ra3 {[%clk 0:00:42]} 37. Ne2 {[%clk 0:00:20]}  Qg4 {[%clk 0:00:40]} 38. Ng1 {[%clk 0:00:20]}  Rc3 {[%clk 0:00:37]} 39. Qe2 {[%clk 0:00:20]}  Qd7 {[%clk 0:00:35]} 40. Rbc1 {[%clk 0:00:20]}  Ra3 {[%clk 0:00:35]} 41. Rcd1 {[%clk 0:00:20]}  Qa4 {[%clk 0:00:31]} 42. Rd2 {[%clk 0:00:19]}  Qb3 {[%clk 0:00:30]} 43. Red1 {[%clk 0:00:19]}  Na2 {[%clk 0:00:27]} 44. Rd3 {[%clk 0:00:18]}  Nc3 {[%clk 0:00:27]} 45. Rxc3 {[%clk 0:00:16]}  Qxc3 {[%clk 0:00:27]} 46. e5 {[%clk 0:00:15]}  Rb3 {[%clk 0:00:23]} 47. e6 {[%clk 0:00:13]}  Rb2 {[%clk 0:00:21]} 48. Qf3 {[%clk 0:00:11]}  Qc2 {[%clk 0:00:20]} 49. Qe2 {[%clk 0:00:05]}  Qxe2 {[%clk 0:00:20]} 50. Nxe2 {[%clk 0:00:06]}  Rxe2 {[%clk 0:00:20]} 51. exf7 {[%clk 0:00:00]}  Re7 {[%clk 0:00:19]} 0-1

[Event "January 2 Late 2024"]
[Site "https://www.chess.com"]
[Date "2024.01.02"]
[Round "6"]
[White "Blanco Ronquillo, Humberto L."]
[Black "Gasparyan, David"]
[Result "0-1"]
[Board "69"]
[TimeControl "180+1"]
[WhiteFideId "3504239"]
[BlackFideId "13311980"]
[WhiteElo "2708"]
[BlackElo "2524"]
[WhiteTeam "CUB"]
[BlackTeam "USA"]
[WhiteClock "0:00:29"]
[BlackClock "0:00:16"]

1. e4 {[%clk 0:03:00]}  d6 {[%clk 0:02:58]} 2. d4 {[%clk 0:02:59]}  Nf6 {[%clk 0:02:59]} 3. Nc3 {[%clk 0:02:59]}  g6 {[%clk 0:02:56]} 4. h3 {[%clk 0:02:57]}  Nbd7 {[%clk 0:02:55]} 5. Nf3 {[%clk 0:02:57]}  e5 {[%clk 0:02:54]} 6. a4 {[%clk 0:02:51]}  Bg7 {[%clk 0:02:47]} 7. dxe5 {[%clk 0:02:50]}  dxe5 {[%clk 0:02:44]} 8. Be3 {[%clk 0:02:49]}  c6 {[%clk 0:02:36]} 9. a5 {[%clk 0:02:49]}  O-O {[%clk 0:02:33]} 10. Bc4 {[%clk 0:02:48]}  Qe7 {[%clk 0:02:32]} 11. O-O {[%clk 0:02:44]}  h6 {[%clk 0:02:26]} 12. Qc1 {[%clk 0:02:17]}  Kh7 {[%clk 0:02:25]} 13. Rd1 {[%clk 0:02:18]}  Re8 {[%clk 0:02:22]} 14. Nd2 {[%clk 0:02:18]}  Nf8 {[%clk 0:02:21]} 15. Bf1 {[%clk 0:02:16]}  Ne6 {[%clk 0:02:21]} 16. Na4 {[%clk 0:02:15]}  Nf4 {[%clk 0:02:16]} 17. Bc5 {[%clk 0:02:08]}  Qc7 {[%clk 0:02:10]} 18. b4 {[%clk 0:02:05]}  Be6 {[%clk 0:02:01]} 19. Kh2 {[%clk 0:01:55]}  Qc8 {[%clk 0:01:41]} 20. Re1 {[%clk 0:01:53]}  h5 {[%clk 0:01:38]} 21. Nc4 {[%clk 0:01:50]}  Rd8 {[%clk 0:01:18]} 22. Nxe5 {[%clk 0:01:39]}  Qc7 {[%clk 0:01:06]} 23. g3 {[%clk 0:01:39]}  Qxe5 {[%clk 0:00:57]} 24. Qxf4 {[%clk 0:01:38]}  Qxf4 {[%clk 0:00:55]} 25. gxf4 {[%clk 0:01:39]}  Nxe4 {[%clk 0:00:53]} 26. Rad1 {[%clk 0:01:33]}  Nc3 {[%clk 0:00:48]} 27. Nxc3 {[%clk 0:01:16]}  Bxc3 {[%clk 0:00:47]} 28. Rxd8 {[%clk 0:01:15]}  Rxd8 {[%clk 0:00:48]} 29. Rb1 {[%clk 0:01:15]}  a6 {[%clk 0:00:43]} 30. Bd3 {[%clk 0:01:16]}  h4 {[%clk 0:00:40]} 31. Rd1 {[%clk 0:01:11]}  Rd7 {[%clk 0:00:36]} 32. Kg2 {[%clk 0:01:09]}  Bd5+ {[%clk 0:00:35]} 33. Kf1 {[%clk 0:01:07]}  f5 {[%clk 0:00:36]} 34. Be2 {[%clk 0:01:03]}  Rg7 {[%clk 0:00:32]} 35. Rd3 {[%clk 0:00:56]}  Bf6 {[%clk 0:00:29]} 36. Re3 {[%clk 0:00:57]}  Be4 {[%clk 0:00:27]} 37. c3 {[%clk 0:00:56]}  Rd7 {[%clk 0:00:27]} 38. f3 {[%clk 0:00:56]}  Bd5 {[%clk 0:00:26]} 39. Re8 {[%clk 0:00:55]}  Bxc3 {[%clk 0:00:25]} 40. Kf2 {[%clk 0:00:46]}  Bf6 {[%clk 0:00:23]} 41. Rf8 {[%clk 0:00:43]}  Kg7 {[%clk 0:00:23]} 42. Rb8 {[%clk 0:00:43]}  Be7 {[%clk 0:00:20]} 43. Bd4+ {[%clk 0:00:43]}  Bf6 {[%clk 0:00:20]} 44. Bb6 {[%clk 0:00:42]}  Bf7 {[%clk 0:00:18]} 45. Bc5 {[%clk 0:00:42]}  Bb3 {[%clk 0:00:16]} 46. Ke3 {[%clk 0:00:42]}  Be7 {[%clk 0:00:16]} 47. Bd4+ {[%clk 0:00:41]}  Kf7 {[%clk 0:00:16]} 48. Be5 {[%clk 0:00:40]}  Bxb4 {[%clk 0:00:16]} 49. Rh8 {[%clk 0:00:29]}  Bc5+ {[%clk 0:00:16]} 0-1

[Event "January 2 Late 2024"]
[Site "https://www.chess.com"]
[Date "2024.01.02"]
[Round "6"]
[White "Cardoso Cardoso, Jose Gabriel"]
[Black "Weisz, Bryan"]
[Result "1-0"]
[Board "70"]
[TimeControl "180+1"]
[WhiteFideId "4430492"]
[BlackFideId "30934133"]
[WhiteElo "2704"]
[BlackElo "2523"]
[WhiteTeam "COL"]
[BlackTeam "USA"]
[WhiteClock "0:00:09"]
[BlackClock "0:00:10"]

1. c4 {[%clk 0:03:00]}  d5 {[%clk 0:02:56]} 2. cxd5 {[%clk 0:03:00]}  Nf6 {[%clk 0:02:55]} 3. Nc3 {[%clk 0:02:58]}  Nxd5 {[%clk 0:02:53]} 4. d3 {[%clk 0:02:58]}  e5 {[%clk 0:02:43]} 5. Nf3 {[%clk 0:02:58]}  Nc6 {[%clk 0:02:36]} 6. g3 {[%clk 0:02:58]}  Nde7 {[%clk 0:02:19]} 7. b4 {[%clk 0:02:49]}  Nxb4 {[%clk 0:02:15]} 8. Rb1 {[%clk 0:02:18]}  Nbc6 {[%clk 0:02:10]} 9. Qa4 {[%clk 0:02:12]}  Bd7 {[%clk 0:01:56]} 10. Qb3 {[%clk 0:01:51]}  Nd4 {[%clk 0:01:29]} 11. Nxd4 {[%clk 0:01:49]}  exd4 {[%clk 0:01:30]} 12. Ne4 {[%clk 0:01:50]}  Bc6 {[%clk 0:01:29]} 13. Bg2 {[%clk 0:01:47]}  f5 {[%clk 0:01:18]} 14. Ng5 {[%clk 0:01:29]}  Bxg2 {[%clk 0:01:17]} 15. Qf7+ {[%clk 0:01:29]}  Kd7 {[%clk 0:01:18]} 16. Qe6+ {[%clk 0:00:48]}  Ke8 {[%clk 0:01:18]} 17. Qf7+ {[%clk 0:00:39]}  Kd7 {[%clk 0:01:17]} 18. f3 {[%clk 0:00:27]}  Bxh1 {[%clk 0:00:51]} 19. Qe6+ {[%clk 0:00:26]}  Ke8 {[%clk 0:00:51]} 20. Qf7+ {[%clk 0:00:27]}  Kd7 {[%clk 0:00:51]} 21. Rxb7 {[%clk 0:00:28]}  Kc8 {[%clk 0:00:36]} 22. Rb3 {[%clk 0:00:26]}  Rb8 {[%clk 0:00:27]} 23. Qe6+ {[%clk 0:00:26]}  Qd7 {[%clk 0:00:24]} 24. Rxb8+ {[%clk 0:00:27]}  Kxb8 {[%clk 0:00:25]} 25. Qxd7 {[%clk 0:00:28]}  Ng6 {[%clk 0:00:23]} 26. Qe8+ {[%clk 0:00:22]}  Kb7 {[%clk 0:00:23]} 27. Qb5+ {[%clk 0:00:18]}  Kc8 {[%clk 0:00:21]} 28. Qxf5+ {[%clk 0:00:18]}  Kb8 {[%clk 0:00:22]} 29. Qb5+ {[%clk 0:00:17]}  Kc8 {[%clk 0:00:22]} 30. Nf7 {[%clk 0:00:17]}  Rg8 {[%clk 0:00:21]} 31. Kf2 {[%clk 0:00:12]}  Be7 {[%clk 0:00:17]} 32. Qf5+ {[%clk 0:00:11]}  Kb8 {[%clk 0:00:16]} 33. Ne5 {[%clk 0:00:08]}  Rf8 {[%clk 0:00:10]} 34. Nd7+ {[%clk 0:00:09]} 1-0

[Event "January 2 Late 2024"]
[Site "https://www.chess.com"]
[Date "2024.01.02"]
[Round "6"]
[White "Martinez Ramirez, Lennis"]
[Black "Gulamali, Kazim"]
[Result "0-1"]
[Board "71"]
[TimeControl "180+1"]
[WhiteFideId "3509079"]
[BlackFideId "2024764"]
[WhiteElo "2701"]
[BlackElo "2522"]
[WhiteTeam "CUB"]
[BlackTeam "USA"]
[WhiteClock "0:00:06"]
[BlackClock "0:00:13"]

1. d4 {[%clk 0:03:00]}  d6 {[%clk 0:02:56]} 2. e4 {[%clk 0:03:00]}  Nf6 {[%clk 0:02:49]} 3. Nc3 {[%clk 0:03:00]}  Nc6 {[%clk 0:02:46]} 4. d5 {[%clk 0:02:59]}  Nb8 {[%clk 0:02:44]} 5. f4 {[%clk 0:02:58]}  g6 {[%clk 0:02:27]} 6. e5 {[%clk 0:02:58]}  Nfd7 {[%clk 0:02:25]} 7. e6 {[%clk 0:02:56]}  fxe6 {[%clk 0:02:22]} 8. dxe6 {[%clk 0:02:56]}  Nf6 {[%clk 0:02:22]} 9. Bc4 {[%clk 0:02:52]}  c6 {[%clk 0:02:22]} 10. Qe2 {[%clk 0:02:51]}  d5 {[%clk 0:02:22]} 11. Bd3 {[%clk 0:02:50]}  Qd6 {[%clk 0:02:22]} 12. f5 {[%clk 0:02:49]}  gxf5 {[%clk 0:02:20]} 13. Bxf5 {[%clk 0:02:50]}  Na6 {[%clk 0:02:11]} 14. Nf3 {[%clk 0:02:50]}  Nc7 {[%clk 0:02:00]} 15. Ng5 {[%clk 0:02:49]}  Rg8 {[%clk 0:01:57]} 16. Nf7 {[%clk 0:02:42]}  Qc5 {[%clk 0:01:50]} 17. Bg5 {[%clk 0:02:33]}  d4 {[%clk 0:01:50]} 18. Bxf6 {[%clk 0:02:23]}  Qxf5 {[%clk 0:01:48]} 19. Bxd4 {[%clk 0:02:22]}  Nxe6 {[%clk 0:01:47]} 20. Rf1 {[%clk 0:02:02]}  Nxd4 {[%clk 0:01:36]} 21. Nd6+ {[%clk 0:02:02]}  Kd8 {[%clk 0:01:37]} 22. Nxf5 {[%clk 0:02:00]}  Nxe2 {[%clk 0:01:37]} 23. Nxe2 {[%clk 0:01:49]}  Rxg2 {[%clk 0:01:34]} 24. Ne3 {[%clk 0:01:48]}  Rg8 {[%clk 0:01:31]} 25. Rf7 {[%clk 0:01:45]}  Bh6 {[%clk 0:01:24]} 26. Nc4 {[%clk 0:01:03]}  Rg7 {[%clk 0:01:23]} 27. Rf8+ {[%clk 0:00:55]}  Kc7 {[%clk 0:01:22]} 28. Rh8 {[%clk 0:00:55]}  Rb8 {[%clk 0:00:59]} 29. Rd1 {[%clk 0:00:54]}  Be6 {[%clk 0:00:58]} 30. Rxb8 {[%clk 0:00:53]}  Kxb8 {[%clk 0:00:59]} 31. Ne5 {[%clk 0:00:51]}  Rg2 {[%clk 0:00:57]} 32. Nd4 {[%clk 0:00:28]}  Bh3 {[%clk 0:00:37]} 33. Rd3 {[%clk 0:00:27]}  Rxh2 {[%clk 0:00:31]} 34. Nf7 {[%clk 0:00:12]}  Bf4 {[%clk 0:00:27]} 35. Rf3 {[%clk 0:00:12]}  e5 {[%clk 0:00:23]} 36. Ne2 {[%clk 0:00:09]}  Bg4 {[%clk 0:00:20]} 37. Rf2 {[%clk 0:00:07]}  Rh1+ {[%clk 0:00:11]} 38. Rf1 {[%clk 0:00:07]}  Bd2+ {[%clk 0:00:10]} 39. Kf2 {[%clk 0:00:07]}  Rxf1+ {[%clk 0:00:05]} 40. Kxf1 {[%clk 0:00:08]}  Bf4 {[%clk 0:00:04]} 41. Nxf4 {[%clk 0:00:07]}  exf4 {[%clk 0:00:05]} 42. Ng5 {[%clk 0:00:08]}  h5 {[%clk 0:00:05]} 43. Kf2 {[%clk 0:00:08]}  Kc7 {[%clk 0:00:05]} 44. Ne4 {[%clk 0:00:08]}  b6 {[%clk 0:00:05]} 45. c3 {[%clk 0:00:08]}  Kd7 {[%clk 0:00:06]} 46. Nd2 {[%clk 0:00:06]}  Ke6 {[%clk 0:00:06]} 47. b3 {[%clk 0:00:05]}  Kd5 {[%clk 0:00:06]} 48. Nc4 {[%clk 0:00:05]}  b5 {[%clk 0:00:06]} 49. Na5 {[%clk 0:00:05]}  c5 {[%clk 0:00:06]} 50. c4+ {[%clk 0:00:05]}  bxc4 {[%clk 0:00:06]} 51. Nxc4 {[%clk 0:00:06]}  Kd4 {[%clk 0:00:07]} 52. Nd6 {[%clk 0:00:06]}  Kc3 {[%clk 0:00:06]} 53. Nb5+ {[%clk 0:00:06]}  Kb2 {[%clk 0:00:07]} 54. Nxa7 {[%clk 0:00:04]}  Kxa2 {[%clk 0:00:07]} 55. Nb5 {[%clk 0:00:03]}  Kxb3 {[%clk 0:00:07]} 56. Nd6 {[%clk 0:00:03]}  c4 {[%clk 0:00:08]} 57. Ke1 {[%clk 0:00:04]}  c3 {[%clk 0:00:08]} 58. Ne4 {[%clk 0:00:04]}  h4 {[%clk 0:00:08]} 59. Nf2 {[%clk 0:00:03]}  Bf5 {[%clk 0:00:08]} 60. Kd1 {[%clk 0:00:02]}  h3 {[%clk 0:00:08]} 61. Kc1 {[%clk 0:00:02]}  h2 {[%clk 0:00:08]} 62. Nh1 {[%clk 0:00:01]}  Be4 {[%clk 0:00:09]} 63. Nf2 {[%clk 0:00:02]}  h1=Q+ {[%clk 0:00:09]} 64. Nxh1 {[%clk 0:00:03]}  Bxh1 {[%clk 0:00:09]} 65. Kd1 {[%clk 0:00:04]}  Bf3+ {[%clk 0:00:09]} 66. Kc1 {[%clk 0:00:04]}  c2 {[%clk 0:00:09]} 67. Kd2 {[%clk 0:00:04]}  Kb2 {[%clk 0:00:10]} 68. Kd3 {[%clk 0:00:04]}  Bh5 {[%clk 0:00:11]} 69. Kd4 {[%clk 0:00:05]}  f3 {[%clk 0:00:11]} 70. Ke5 {[%clk 0:00:06]}  f2 {[%clk 0:00:12]} 71. Kf4 {[%clk 0:00:07]}  f1=Q+ {[%clk 0:00:12]} 72. Kg5 {[%clk 0:00:07]}  Qd1 {[%clk 0:00:13]} 73. Kh6 {[%clk 0:00:08]}  c1=Q+ {[%clk 0:00:14]} 74. Kh7 {[%clk 0:00:08]}  Qd7+ {[%clk 0:00:14]} 75. Kh8 {[%clk 0:00:06]}  Qc3+ {[%clk 0:00:13]} 0-1

[Event "January 2 Late 2024"]
[Site "https://www.chess.com"]
[Date "2024.01.02"]
[Round "6"]
[White "Dinu, Dumitru-Daniel"]
[Black "Do Valle Cardoso, Lucas"]
[Result "0-1"]
[Board "72"]
[TimeControl "180+1"]
[WhiteFideId "1208403"]
[BlackFideId "2163144"]
[WhiteElo "2522"]
[BlackElo "2697"]
[WhiteTeam "ROU"]
[BlackTeam "BRA"]
[WhiteClock "0:00:02"]
[BlackClock "0:00:12"]

1. e4 {[%clk 0:03:00]}  c5 {[%clk 0:02:55]} 2. Nf3 {[%clk 0:03:00]}  d6 {[%clk 0:02:56]} 3. Bb5+ {[%clk 0:02:58]}  Nd7 {[%clk 0:02:55]} 4. Bxd7+ {[%clk 0:02:52]}  Bxd7 {[%clk 0:02:55]} 5. d4 {[%clk 0:02:51]}  cxd4 {[%clk 0:02:56]} 6. Qxd4 {[%clk 0:02:48]}  e5 {[%clk 0:02:43]} 7. Qd3 {[%clk 0:02:47]}  Bc6 {[%clk 0:02:38]} 8. c4 {[%clk 0:02:44]}  h6 {[%clk 0:02:09]} 9. Nc3 {[%clk 0:02:43]}  Nf6 {[%clk 0:02:10]} 10. O-O {[%clk 0:02:42]}  Be7 {[%clk 0:02:09]} 11. h3 {[%clk 0:02:33]}  O-O {[%clk 0:02:05]} 12. Be3 {[%clk 0:02:32]}  a5 {[%clk 0:02:05]} 13. Rfd1 {[%clk 0:02:29]}  Qd7 {[%clk 0:01:59]} 14. Nd5 {[%clk 0:02:25]}  Bxd5 {[%clk 0:01:53]} 15. cxd5 {[%clk 0:02:24]}  Rfc8 {[%clk 0:01:48]} 16. Nd2 {[%clk 0:02:23]}  b5 {[%clk 0:01:47]} 17. Rac1 {[%clk 0:02:22]}  a4 {[%clk 0:01:43]} 18. a3 {[%clk 0:02:19]}  Bd8 {[%clk 0:01:41]} 19. Nb1 {[%clk 0:02:16]}  Ba5 {[%clk 0:01:41]} 20. f3 {[%clk 0:02:10]}  Qb7 {[%clk 0:01:31]} 21. Bd2 {[%clk 0:01:47]}  Bb6+ {[%clk 0:01:26]} 22. Be3 {[%clk 0:01:46]}  Nd7 {[%clk 0:01:25]} 23. Bxb6 {[%clk 0:01:36]}  Qxb6+ {[%clk 0:01:22]} 24. Kh1 {[%clk 0:01:35]}  Nc5 {[%clk 0:01:12]} 25. Qe2 {[%clk 0:01:34]}  Nb3 {[%clk 0:01:11]} 26. Rxc8+ {[%clk 0:01:34]}  Rxc8 {[%clk 0:01:12]} 27. Nc3 {[%clk 0:01:33]}  Nd4 {[%clk 0:01:12]} 28. Qd3 {[%clk 0:01:31]}  b4 {[%clk 0:01:09]} 29. axb4 {[%clk 0:01:23]}  Qxb4 {[%clk 0:01:09]} 30. Qa6 {[%clk 0:01:19]}  Rc4 {[%clk 0:00:50]} 31. Rd2 {[%clk 0:00:56]}  a3 {[%clk 0:00:47]} 32. Qa8+ {[%clk 0:00:48]}  Kh7 {[%clk 0:00:45]} 33. Nb1 {[%clk 0:00:09]}  Rc1+ {[%clk 0:00:31]} 34. Kh2 {[%clk 0:00:09]}  Rxb1 {[%clk 0:00:31]} 35. Rd3 {[%clk 0:00:09]}  axb2 {[%clk 0:00:30]} 36. Qc8 {[%clk 0:00:09]}  Rh1+ {[%clk 0:00:28]} 37. Kg3 {[%clk 0:00:10]}  b1=Q {[%clk 0:00:29]} 38. Rxd4 {[%clk 0:00:10]}  Q1e1+ {[%clk 0:00:23]} 39. Kg4 {[%clk 0:00:10]}  h5+ {[%clk 0:00:18]} 40. Kf5 {[%clk 0:00:06]}  Qxd4 {[%clk 0:00:15]} 41. Qf8 {[%clk 0:00:04]}  Qh4 {[%clk 0:00:11]} 42. Qxf7 {[%clk 0:00:04]}  Qf6+ {[%clk 0:00:12]} 43. Qxf6 {[%clk 0:00:02]}  gxf6 {[%clk 0:00:12]} 0-1

[Event "January 2 Late 2024"]
[Site "https://www.chess.com"]
[Date "2024.01.02"]
[Round "6"]
[White "Annaberdiyev, Meylis"]
[Black "N_Mullodzhanov"]
[Result "1-0"]
[Board "73"]
[TimeControl "180+1"]
[WhiteFideId "14000563"]
[WhiteElo "2677"]
[BlackElo "2519"]
[WhiteTeam "TKM"]
[WhiteClock "0:00:39"]
[BlackClock "0:01:22"]

1. e4 {[%clk 0:03:00]}  c6 {[%clk 0:03:00]} 2. Nf3 {[%clk 0:02:58]}  d5 {[%clk 0:03:00]} 3. exd5 {[%clk 0:02:59]}  cxd5 {[%clk 0:03:00]} 4. Ne5 {[%clk 0:03:00]}  Nf6 {[%clk 0:02:59]} 5. d4 {[%clk 0:03:00]}  Nc6 {[%clk 0:02:58]} 6. c3 {[%clk 0:03:00]}  Nxe5 {[%clk 0:02:51]} 7. dxe5 {[%clk 0:03:00]}  Ne4 {[%clk 0:02:51]} 8. Bb5+ {[%clk 0:02:56]}  Bd7 {[%clk 0:02:50]} 9. Qxd5 {[%clk 0:02:53]}  Bxb5 {[%clk 0:02:50]} 10. Qxb5+ {[%clk 0:02:52]}  Qd7 {[%clk 0:02:49]} 11. Qxd7+ {[%clk 0:02:52]}  Kxd7 {[%clk 0:02:50]} 12. Be3 {[%clk 0:02:49]}  e6 {[%clk 0:02:50]} 13. Ke2 {[%clk 0:02:39]}  Bc5 {[%clk 0:02:48]} 14. Rd1+ {[%clk 0:02:37]}  Kc6 {[%clk 0:02:48]} 15. b4 {[%clk 0:02:29]}  Be7 {[%clk 0:02:43]} 16. f3 {[%clk 0:02:26]}  Ng5 {[%clk 0:02:41]} 17. h4 {[%clk 0:02:25]}  h6 {[%clk 0:02:28]} 18. hxg5 {[%clk 0:02:23]}  hxg5 {[%clk 0:02:29]} 19. Na3 {[%clk 0:02:22]}  Rh2 {[%clk 0:02:28]} 20. Kf1 {[%clk 0:02:11]}  b5 {[%clk 0:02:28]} 21. Nc2 {[%clk 0:02:07]}  g4 {[%clk 0:02:23]} 22. Nd4+ {[%clk 0:02:02]}  Kb7 {[%clk 0:02:20]} 23. fxg4 {[%clk 0:02:01]}  a6 {[%clk 0:02:10]} 24. Nf3 {[%clk 0:02:00]}  Rh1+ {[%clk 0:02:10]} 25. Ke2 {[%clk 0:02:00]}  Rxd1 {[%clk 0:02:06]} 26. Rxd1 {[%clk 0:02:01]}  Kc6 {[%clk 0:02:06]} 27. Nd4+ {[%clk 0:02:00]}  Kc7 {[%clk 0:02:04]} 28. Rf1 {[%clk 0:02:00]}  Rf8 {[%clk 0:02:02]} 29. g5 {[%clk 0:02:00]}  g6 {[%clk 0:02:02]} 30. Kd3 {[%clk 0:01:57]}  Kd7 {[%clk 0:02:01]} 31. Ke4 {[%clk 0:01:55]}  Rc8 {[%clk 0:01:55]} 32. Rxf7 {[%clk 0:01:44]}  Rxc3 {[%clk 0:01:55]} 33. Nb3 {[%clk 0:01:34]}  Ke8 {[%clk 0:01:52]} 34. Rh7 {[%clk 0:01:32]}  Bxb4 {[%clk 0:01:51]} 35. Nd4 {[%clk 0:01:28]}  Rc4 {[%clk 0:01:48]} 36. Kf3 {[%clk 0:01:28]}  Rc5 {[%clk 0:01:37]} 37. Rh8+ {[%clk 0:00:54]}  Ke7 {[%clk 0:01:33]} 38. Ra8 {[%clk 0:00:50]}  a5 {[%clk 0:01:31]} 39. Nf5+ {[%clk 0:00:36]}  exf5 {[%clk 0:01:29]} 40. Bxc5+ {[%clk 0:00:36]}  Bxc5 {[%clk 0:01:30]} 41. Rxa5 {[%clk 0:00:36]}  Bd4 {[%clk 0:01:21]} 42. Rxb5 {[%clk 0:00:36]}  Ke6 {[%clk 0:01:21]} 43. a4 {[%clk 0:00:36]}  Bxe5 {[%clk 0:01:19]} 44. Rxe5+ {[%clk 0:00:35]}  Kxe5 {[%clk 0:01:20]} 45. a5 {[%clk 0:00:35]}  Kd6 {[%clk 0:01:20]} 46. Kf4 {[%clk 0:00:36]}  Kd5 {[%clk 0:01:19]} 47. a6 {[%clk 0:00:36]}  Kc6 {[%clk 0:01:19]} 48. Ke5 {[%clk 0:00:35]}  Kb6 {[%clk 0:01:19]} 49. Kf6 {[%clk 0:00:35]}  Kxa6 {[%clk 0:01:19]} 50. Kxg6 {[%clk 0:00:36]}  f4 {[%clk 0:01:20]} 51. Kf6 {[%clk 0:00:36]}  Kb5 {[%clk 0:01:20]} 52. g6 {[%clk 0:00:36]}  Kc4 {[%clk 0:01:20]} 53. g7 {[%clk 0:00:36]}  Kd3 {[%clk 0:01:21]} 54. g8=Q {[%clk 0:00:36]}  Ke3 {[%clk 0:01:22]} 55. Qg4 {[%clk 0:00:36]}  Ke4 {[%clk 0:01:21]} 56. Qf3+ {[%clk 0:00:36]}  Kd4 {[%clk 0:01:21]} 57. Kf5 {[%clk 0:00:36]}  Kc5 {[%clk 0:01:21]} 58. Qxf4 {[%clk 0:00:36]}  Kd5 {[%clk 0:01:21]} 59. g4 {[%clk 0:00:37]}  Kc6 {[%clk 0:01:20]} 60. g5 {[%clk 0:00:38]}  Kc5 {[%clk 0:01:20]} 61. g6 {[%clk 0:00:39]}  Kc6 {[%clk 0:01:21]} 62. g7 {[%clk 0:00:40]}  Kc5 {[%clk 0:01:21]} 63. g8=Q {[%clk 0:00:40]}  Kc6 {[%clk 0:01:22]} 64. Qe6+ {[%clk 0:00:40]}  Kc5 {[%clk 0:01:22]} 65. Qfc4# {[%clk 0:00:39]} 1-0